{"text_format":"3","workbook":"xlsx","n_sheets":1,"sheets":["Kredi Hesaplayıcısı"],"not_rendered":{"defined_names":9},"read":"whole","date_system":"1900"}

{"sheet":"Kredi Hesaplayıcısı","index":0,"n_rows":22,"n_cols":13,"rows_kept":22,"merged":[[1,1,1,3],[1,6,2,8],[1,11,2,12],[2,1,2,3],[6,5,6,6],[7,5,7,6],[10,2,10,5],[10,6,10,8],[10,9,10,12],[18,2,18,12]]}
[]
[null,"ÜNİVERSİTE KREDİSİ",{"$nulls":4},{"v":50000,"d":"50,000 TL"},{"$nulls":4},{"v":40673,"d":"4067300.00%"}]
[null,"HESAPLAYICISI "]
[]
[null," Aylık öğrenci kredisi geri ödemelerinizin toplamının ilk yıl alacağınız aylık maaşınızın %8'ini geçmemesi önerilir."]
[]
[null,null,"Birleştirilmiş şu anki aylık ödemeniz:",null,null,{"$f":"ÜniversiteBorçları[[#Totals],[Şu Anki Aylık Ödeme]]","v":{"v":328.58590726058833,"d":"328.59 TL"}},null,null,"Birleştirilmiş zamanlanan aylık ödemeniz:",{"$nulls":3},{"$f":"ÜniversiteBorçları[[#Totals],[Zamanlanan Ödeme]]","v":{"v":328.58590726058833,"d":"328.59 TL"}}]
[null,null,"Aylık gelir yüzdesi:",null,null,{"$f":"ÜniversiteBorçları[[#Totals],[Şu Anki Aylık Ödeme]]/TahminiAylıkMaaş","v":{"v":0.07886061774254119,"d":"7.89%"}},null,null,"  Aylık gelir yüzdesi:",{"$nulls":3},{"$f":"ÜniversiteBorçları[[#Totals],[Zamanlanan Ödeme]]/TahminiAylıkMaaş","v":{"v":0.07886061774254119,"d":"7.89%"}}]
[]
[]
[null,null,"GENEL KREDİ AYRINTILARI",{"$nulls":3},"KREDİ GERİ ÖDEME VERİLERİ",null,null,"ÖDEME AYRINTILARI"]
[null,null,"Kredi No.","Krediyi Veren","Kredi Miktarı","Yıllık Faiz Oranı","Başlama Tarihi","Süre (Yıl)","Bitiş Tarihi","Şu Anki Aylık Ödeme","Toplam Faiz","Zamanlanan Ödeme","Yıllık Ödeme"]
[null,null,"10998M88","Krediyi Veren 1",{"v":10000,"d":"10,000.00 TL"},{"v":0.05,"d":"5.00%"},{"v":40634,"d":"4063400.00%"},10,{"$f":"IF(AND(ÜniversiteBorçları[[#This Row],[Başlama Tarihi]]>0,ÜniversiteBorçları[[#This Row],[Süre (Yıl)]]>0),EDATE(ÜniversiteBorçları[[#This Row],[Başlama Tarihi]],ÜniversiteBorçları[[#This Row],[Süre (Yıl)]]*12),\"\")","v":{"v":44287,"d":"4428700.00%"}},{"$f":"IF(AND(BorçBaşlangıcıBugün,COUNT(ÜniversiteBorçları[[#This Row],[Kredi Miktarı]]:ÜniversiteBorçları[[#This Row],[Süre (Yıl)]])=4,ÜniversiteBorçları[[#This Row],[Başlama Tarihi]]<TODAY()),PMT(ÜniversiteBorçları[[#This Row],[Yıllık Faiz Oranı]]/12,ÜniversiteBorçları[[#This Row],[Süre (Yıl)]]*12,-ÜniversiteBorçları[[#This Row],[Kredi Miktarı]],0,0),\"\")","v":{"v":106.06551523907524,"d":"106.07 TL"}},{"$f":"IFERROR((ÜniversiteBorçları[[#This Row],[Zamanlanan Ödeme]]*(ÜniversiteBorçları[[#This Row],[Süre (Yıl)]]*12))-ÜniversiteBorçları[[#This Row],[Kredi Miktarı]],\"\")","v":{"v":2727.8618286890287,"d":"2,727.86 TL"}},{"$f":"IF(COUNTA(ÜniversiteBorçları[[#This Row],[Kredi Miktarı]]:ÜniversiteBorçları[[#This Row],[Süre (Yıl)]])<>4,\"\",PMT(ÜniversiteBorçları[[#This Row],[Yıllık Faiz Oranı]]/12,ÜniversiteBorçları[[#This Row],[Süre (Yıl)]]*12,-ÜniversiteBorçları[[#This Row],[Kredi Miktarı]],0,0))","v":{"v":106.06551523907524,"d":"106.07 TL"}},{"$f":"IFERROR(ÜniversiteBorçları[[#This Row],[Zamanlanan Ödeme]]*12,\"\")","v":{"v":1272.7861828689029,"d":"1,272.79 TL"}}]
[null,null,"20987N87","Krediyi Veren 2",{"v":8000,"d":"8,000.00 TL"},{"v":0.05,"d":"5.00%"},{"v":40664,"d":"4066400.00%"},10,{"$f":"IF(AND(ÜniversiteBorçları[[#This Row],[Başlama Tarihi]]>0,ÜniversiteBorçları[[#This Row],[Süre (Yıl)]]>0),EDATE(ÜniversiteBorçları[[#This Row],[Başlama Tarihi]],ÜniversiteBorçları[[#This Row],[Süre (Yıl)]]*12),\"\")","v":{"v":44317,"d":"4431700.00%"}},{"$f":"IF(AND(BorçBaşlangıcıBugün,COUNT(ÜniversiteBorçları[[#This Row],[Kredi Miktarı]]:ÜniversiteBorçları[[#This Row],[Süre (Yıl)]])=4,ÜniversiteBorçları[[#This Row],[Başlama Tarihi]]<TODAY()),PMT(ÜniversiteBorçları[[#This Row],[Yıllık Faiz Oranı]]/12,ÜniversiteBorçları[[#This Row],[Süre (Yıl)]]*12,-ÜniversiteBorçları[[#This Row],[Kredi Miktarı]],0,0),\"\")","v":{"v":84.85241219126019,"d":"84.85 TL"}},{"$f":"IFERROR((ÜniversiteBorçları[[#This Row],[Zamanlanan Ödeme]]*(ÜniversiteBorçları[[#This Row],[Süre (Yıl)]]*12))-ÜniversiteBorçları[[#This Row],[Kredi Miktarı]],\"\")","v":{"v":2182.289462951223,"d":"2,182.29 TL"}},{"$f":"IF(COUNTA(ÜniversiteBorçları[[#This Row],[Kredi Miktarı]]:ÜniversiteBorçları[[#This Row],[Süre (Yıl)]])<>4,\"\",PMT(ÜniversiteBorçları[[#This Row],[Yıllık Faiz Oranı]]/12,ÜniversiteBorçları[[#This Row],[Süre (Yıl)]]*12,-ÜniversiteBorçları[[#This Row],[Kredi Miktarı]],0,0))","v":{"v":84.85241219126019,"d":"84.85 TL"}},{"$f":"IFERROR(ÜniversiteBorçları[[#This Row],[Zamanlanan Ödeme]]*12,\"\")","v":{"v":1018.2289462951222,"d":"1,018.23 TL"}}]
[null,null,"36785LM","Krediyi Veren 3",{"v":6000,"d":"6,000.00 TL"},{"v":0.045,"d":"4.50%"},{"v":40969,"d":"4096900.00%"},10,{"$f":"IF(AND(ÜniversiteBorçları[[#This Row],[Başlama Tarihi]]>0,ÜniversiteBorçları[[#This Row],[Süre (Yıl)]]>0),EDATE(ÜniversiteBorçları[[#This Row],[Başlama Tarihi]],ÜniversiteBorçları[[#This Row],[Süre (Yıl)]]*12),\"\")","v":{"v":44621,"d":"4462100.00%"}},{"$f":"IF(AND(BorçBaşlangıcıBugün,COUNT(ÜniversiteBorçları[[#This Row],[Kredi Miktarı]]:ÜniversiteBorçları[[#This Row],[Süre (Yıl)]])=4,ÜniversiteBorçları[[#This Row],[Başlama Tarihi]]<TODAY()),PMT(ÜniversiteBorçları[[#This Row],[Yıllık Faiz Oranı]]/12,ÜniversiteBorçları[[#This Row],[Süre (Yıl)]]*12,-ÜniversiteBorçları[[#This Row],[Kredi Miktarı]],0,0),\"\")","v":{"v":62.18304525420918,"d":"62.18 TL"}},{"$f":"IFERROR((ÜniversiteBorçları[[#This Row],[Zamanlanan Ödeme]]*(ÜniversiteBorçları[[#This Row],[Süre (Yıl)]]*12))-ÜniversiteBorçları[[#This Row],[Kredi Miktarı]],\"\")","v":{"v":1461.9654305051017,"d":"1,461.97 TL"}},{"$f":"IF(COUNTA(ÜniversiteBorçları[[#This Row],[Kredi Miktarı]]:ÜniversiteBorçları[[#This Row],[Süre (Yıl)]])<>4,\"\",PMT(ÜniversiteBorçları[[#This Row],[Yıllık Faiz Oranı]]/12,ÜniversiteBorçları[[#This Row],[Süre (Yıl)]]*12,-ÜniversiteBorçları[[#This Row],[Kredi Miktarı]],0,0))","v":{"v":62.18304525420918,"d":"62.18 TL"}},{"$f":"IFERROR(ÜniversiteBorçları[[#This Row],[Zamanlanan Ödeme]]*12,\"\")","v":{"v":746.1965430505102,"d":"746.20 TL"}}]
[null,null,"765R43","Krediyi Veren 4",{"v":4000,"d":"4,000.00 TL"},{"v":0.05,"d":"5.00%"},{"v":41030,"d":"4103000.00%"},5,{"$f":"IF(AND(ÜniversiteBorçları[[#This Row],[Başlama Tarihi]]>0,ÜniversiteBorçları[[#This Row],[Süre (Yıl)]]>0),EDATE(ÜniversiteBorçları[[#This Row],[Başlama Tarihi]],ÜniversiteBorçları[[#This Row],[Süre (Yıl)]]*12),\"\")","v":{"v":42856,"d":"4285600.00%"}},{"$f":"IF(AND(BorçBaşlangıcıBugün,COUNT(ÜniversiteBorçları[[#This Row],[Kredi Miktarı]]:ÜniversiteBorçları[[#This Row],[Süre (Yıl)]])=4,ÜniversiteBorçları[[#This Row],[Başlama Tarihi]]<TODAY()),PMT(ÜniversiteBorçları[[#This Row],[Yıllık Faiz Oranı]]/12,ÜniversiteBorçları[[#This Row],[Süre (Yıl)]]*12,-ÜniversiteBorçları[[#This Row],[Kredi Miktarı]],0,0),\"\")","v":{"v":75.48493457604374,"d":"75.48 TL"}},{"$f":"IFERROR((ÜniversiteBorçları[[#This Row],[Zamanlanan Ödeme]]*(ÜniversiteBorçları[[#This Row],[Süre (Yıl)]]*12))-ÜniversiteBorçları[[#This Row],[Kredi Miktarı]],\"\")","v":{"v":529.0960745626244,"d":"529.10 TL"}},{"$f":"IF(COUNTA(ÜniversiteBorçları[[#This Row],[Kredi Miktarı]]:ÜniversiteBorçları[[#This Row],[Süre (Yıl)]])<>4,\"\",PMT(ÜniversiteBorçları[[#This Row],[Yıllık Faiz Oranı]]/12,ÜniversiteBorçları[[#This Row],[Süre (Yıl)]]*12,-ÜniversiteBorçları[[#This Row],[Kredi Miktarı]],0,0))","v":{"v":75.48493457604374,"d":"75.48 TL"}},{"$f":"IFERROR(ÜniversiteBorçları[[#This Row],[Zamanlanan Ödeme]]*12,\"\")","v":{"v":905.8192149125249,"d":"905.82 TL"}}]
[null,null,"Toplam",null,{"$f":"SUBTOTAL(109,ÜniversiteBorçları[Kredi Miktarı])","v":{"v":28000,"d":"28,000.00 TL"}},{"$nulls":4},{"$f":"SUBTOTAL(109,ÜniversiteBorçları[Şu Anki Aylık Ödeme])","v":{"v":328.58590726058833,"d":"328.59 TL"}},{"$f":"SUBTOTAL(109,ÜniversiteBorçları[Toplam Faiz])","v":{"v":6901.212796707978,"d":"6,901.21 TL"}},{"$f":"SUBTOTAL(109,ÜniversiteBorçları[Zamanlanan Ödeme])","v":{"v":328.58590726058833,"d":"328.59 TL"}},{"$f":"SUBTOTAL(109,ÜniversiteBorçları[Yıllık Ödeme])","v":{"v":3943.03088712706,"d":"3,943.03 TL"}}]
[null,null,"Ortalamalar",null,{"$f":"AVERAGE(ÜniversiteBorçları[Kredi Miktarı])","v":{"v":7000,"d":"7,000.00 TL"}},{"$f":"AVERAGE(ÜniversiteBorçları[Yıllık Faiz Oranı])","v":{"v":0.04875,"d":"4.88%"}},{"$nulls":4},{"$f":"AVERAGE(ÜniversiteBorçları[Toplam Faiz])","v":{"v":1725.3031991769944,"d":"1,725.30 TL"}},null,{"$f":"AVERAGE(ÜniversiteBorçları[Yıllık Ödeme])","v":{"v":985.757721781765,"d":"985.76 TL"}}]
[]
[{"$nulls":10},"Toplam Birleştirilmiş Kredi Geri Ödeme:",null,{"$f":"ÜniversiteBorçları[[#Totals],[Kredi Miktarı]]+ÜniversiteBorçları[[#Totals],[Toplam Faiz]]","v":{"v":34901.21279670798,"d":"34,901.21 TL"}}]
[]
[{"$nulls":10},"Mezuniyet Sonrası Tahmini Aylık Gelir:",null,{"$f":"(TahminiYıllıkMaaş/12)","v":{"v":4166.666666666667,"d":"4,166.67 TL"}}]